[Event "Polofinale MCR juniorek 2023"]
[Site "Czech Republic"]
[Date "2023.11.11"]
[Round "1.6"]
[White "Kavanova, Anezka"]
[Black "Hosova, Sandra"]
[Result "1-0"]
[TimeControl "90 min per 40 moves + 15 min + 30 sec / move from move 1"]
[WhiteFideId "23745517"]
[BlackFideId "397717"]
[WhiteElo "1434"]
[BlackElo "1730"]

1. e4 {[%clk 01:30:57]} {[%emt 00:00:01]} c5 {[%clk 01:30:52]} {[%emt
00:00:08]} 2. Nf3 {[%clk 01:31:17]} {[%emt 00:00:10]} Nc6 {[%clk 01:31:12]}
{[%emt 00:00:10]} 3. d4 {[%clk 01:31:42]} {[%emt 00:00:05]} cxd4 {[%clk
01:31:35]} {[%emt 00:00:07]} 4. Nxd4 {[%clk 01:32:07]} {[%emt 00:00:04]} g6
{[%clk 01:31:56]} {[%emt 00:00:10]} 5. c4 {[%clk 01:32:30]} {[%emt 00:00:08]}
Bg7 {[%clk 01:32:12]} {[%emt 00:00:13]} 6. Be3 {[%clk 01:32:54]} {[%emt
00:00:05]} Nf6 {[%clk 01:32:20]} {[%emt 00:00:22]} 7. Nc3 {[%clk 01:33:12]}
{[%emt 00:00:12]} Ng4 {[%clk 01:32:08]} {[%emt 00:00:43]} 8. Qxg4 {[%clk
01:31:28]} {[%emt 00:02:13]} Nxd4 {[%clk 01:32:28]} {[%emt 00:00:11]} 9. Qd1
{[%clk 01:31:19]} {[%emt 00:00:38]} e5 {[%clk 01:32:26]} {[%emt 00:00:32]} 10.
Qd2 {[%clk 01:17:57]} {[%emt 00:13:51]} O-O {[%clk 01:27:56]} {[%emt 00:05:02]}
11. f3 {[%emt 00:18:25]} d6 {[%emt 00:00:42]} 12. Rd1 {[%clk 01:03:13]} {[%emt
00:00:03]} Qe7 {[%clk 01:18:13]} {[%emt 00:07:18]} 13. Ne2 {[%clk 00:51:08]}
{[%emt 00:12:35]} Nxe2 {[%clk 01:14:37]} {[%emt 00:04:07]} 14. Bxe2 {[%clk
00:51:24]} {[%emt 00:00:14]} Rd8 {[%clk 01:14:00]} {[%emt 00:01:07]} 15. O-O
{[%clk 00:50:42]} {[%emt 00:01:13]} Be6 {[%clk 01:12:05]} {[%emt 00:02:25]} 16.
b3 {[%clk 00:50:50]} {[%emt 00:00:21]} f5 {[%clk 01:01:55]} {[%emt 00:10:40]}
17. exf5 {[%clk 00:50:45]} {[%emt 00:00:36]} gxf5 {[%clk 00:59:38]} {[%emt
00:02:47]} 18. Qc2 {[%clk 00:44:05]} {[%emt 00:07:09]} f4 {[%clk 00:54:18]}
{[%emt 00:05:51]} 19. Bf2 {[%clk 00:44:24]} {[%emt 00:00:11]} Qg5 {[%clk
00:50:11]} {[%emt 00:04:37]} 20. Bd3 {[%clk 00:39:14]} {[%emt 00:05:40]} Qh5
{[%clk 00:45:53]} {[%emt 00:04:48]} 21. Be4 {[%clk 00:39:01]} {[%emt 00:00:42]}
Rd7 {[%clk 00:43:37]} {[%emt 00:02:47]} 22. Bd5 {[%clk 00:30:11]} {[%emt
00:09:20]} Qf7 {[%clk 00:38:53]} {[%emt 00:05:14]} 23. Qe4 {[%clk 00:29:27]}
{[%emt 00:01:13]} Kh8 {[%clk 00:37:28]} {[%emt 00:01:55]} 24. Rd2 {[%clk
00:25:28]} {[%emt 00:04:28]} Qe7 {[%clk 00:29:15]} {[%emt 00:08:44]} 25. Rfd1
{[%clk 00:23:17]} {[%emt 00:02:40]} a6 {[%clk 00:20:36]} {[%emt 00:09:09]} 26.
Bxe6 {[%clk 00:16:54]} {[%emt 00:06:53]} Qxe6 {[%clk 00:21:04]} {[%emt
00:00:03]} 27. Qd5 {[%clk 00:17:05]} {[%emt 00:00:19]} Qe7 {[%clk 00:13:44]}
{[%emt 00:07:51]} 28. Bb6 {[%clk 00:13:46]} {[%emt 00:03:48]} Rc8 {[%clk
00:06:04]} {[%emt 00:08:10]} 29. c5 {[%clk 00:10:23]} {[%emt 00:03:53]} Bf8
{[%clk 00:04:23]} {[%emt 00:02:12]} 30. cxd6 {[%clk 00:09:49]} {[%emt
00:01:05]} Qf6 {[%clk 00:02:58]} {[%emt 00:01:55]} 31. Bc7 {[%clk 00:06:48]}
{[%emt 00:03:31]} Rcxc7 {[%clk 00:00:47]} {[%emt 00:02:41]} 32. dxc7 {[%clk
00:07:12]} {[%emt 00:00:06]} Rxc7 {[%clk 00:00:36]} {[%emt 00:00:41]} 33. Qd8
{[%clk 00:07:02]} {[%emt 00:00:40]} Qxd8 {[%clk 00:00:34]} {[%emt 00:00:33]} 34.
Rxd8 {[%clk 00:07:27]} {[%emt 00:00:05]} Kg7 {[%clk 00:00:59]} {[%emt
00:00:05]} 35. R8d7+ {[%clk 00:07:45]} {[%emt 00:00:12]} Rxd7 {[%clk 00:01:21]}
{[%emt 00:00:08]} 36. Rxd7+ {[%clk 00:08:11]} {[%emt 00:00:05]} 1-0

[Event "Polofinale MCR juniorek 2023"]
[Site "Czech Republic"]
[Date "2023.11.11"]
[Round "1.7"]
[White "Nespora, Tatana"]
[Black "Stavova, Marketa"]
[Result "1-0"]
[TimeControl "90 min per 40 moves + 15 min + 30 sec / move from move 1"]
[WhiteFideId "392286"]
[BlackFideId "23714824"]
[WhiteElo "1690"]
[BlackElo "1433"]

1. e4 {[%clk 01:30:09]} {[%emt 00:00:50]} e5 {[%clk 01:30:35]} {[%emt
00:00:26]} 2. d4 {[%clk 01:30:08]} {[%emt 00:00:31]} exd4 {[%clk 01:30:08]}
{[%emt 00:00:57]} 3. c3 {[%clk 01:30:15]} {[%emt 00:00:22]} dxc3 {[%clk
01:29:11]} {[%emt 00:01:28]} 4. Bc4 {[%clk 01:30:27]} {[%emt 00:00:17]} Nc6
{[%clk 01:27:30]} {[%emt 00:02:10]} 5. Nxc3 {[%clk 01:30:28]} {[%emt 00:00:29]}
Nf6 {[%clk 01:26:55]} {[%emt 00:01:05]} 6. Nf3 {[%clk 01:29:56]} {[%emt
00:01:02]} d6 {[%clk 01:26:26]} {[%emt 00:00:59]} 7. Qb3 {[%clk 01:27:42]}
{[%emt 00:02:44]} Qd7 {[%clk 01:24:06]} {[%emt 00:02:50]} 8. O-O {[%clk
01:26:26]} {[%emt 00:01:46]} a6 {[%clk 01:22:41]} {[%emt 00:01:55]} 9. Ng5
{[%clk 01:18:16]} {[%emt 00:08:39]} Ne5 {[%clk 01:20:05]} {[%emt 00:03:06]} 10.
Bf4 {[%clk 01:16:35]} {[%emt 00:02:11]} Nxc4 {[%clk 01:18:19]} {[%emt
00:02:17]} 11. Qxc4 {[%clk 01:16:41]} {[%emt 00:00:24]} h6 {[%clk 01:17:16]}
{[%emt 00:01:33]} 12. Nf3 {[%clk 01:16:23]} {[%emt 00:00:48]} Qd8 {[%clk
01:13:52]} {[%emt 00:03:54]} 13. Rad1 {[%clk 01:14:04]} {[%emt 00:02:47]} Be6
{[%clk 01:12:16]} {[%emt 00:02:07]} 14. Qe2 {[%clk 01:10:47]} {[%emt 00:03:47]}
Nd7 {[%clk 01:05:58]} {[%emt 00:06:48]} 15. e5 {[%clk 01:08:54]} {[%emt
00:02:22]} Qb8 {[%clk 01:02:18]} {[%emt 00:04:11]} 16. exd6 {[%clk 01:06:43]}
{[%emt 00:02:41]} Bxd6 {[%clk 01:00:51]} {[%emt 00:01:56]} 17. Bxd6 {[%clk
01:05:36]} {[%emt 00:01:37]} cxd6 {[%clk 01:01:12]} {[%emt 00:00:10]} 18. Nd4
{[%clk 01:05:46]} {[%emt 00:00:19]} O-O {[%clk 00:50:40]} {[%emt 00:11:02]} 19.
Nxe6 {[%clk 01:05:19]} {[%emt 00:00:57]} fxe6 {[%clk 00:51:01]} {[%emt
00:00:10]} 20. Qxe6+ {[%clk 01:05:21]} {[%emt 00:00:27]} Rf7 {[%clk 00:51:23]}
{[%emt 00:00:08]} 21. Rfe1 {[%clk 01:01:01]} {[%emt 00:04:50]} Nf6 {[%clk
00:46:26]} {[%emt 00:05:27]} 22. Rxd6 {[%clk 00:48:18]} {[%emt 00:13:12]} Qa7
{[%clk 00:43:03]} {[%emt 00:03:53]} 23. Red1 {[%clk 00:41:11]} {[%emt
00:07:37]} Ne8 {[%clk 00:38:15]} {[%emt 00:05:18]} 24. R6d2 {[%clk 00:34:22]}
{[%emt 00:07:19]} b5 {[%clk 00:36:17]} {[%emt 00:02:28]} 25. Ne4 {[%clk
00:32:03]} {[%emt 00:02:48]} Kh8 {[%clk 00:34:46]} {[%emt 00:02:01]} 26. Rd7
{[%clk 00:23:39]} {[%emt 00:08:54]} Rxd7 {[%clk 00:33:12]} {[%emt 00:02:04]} 27.
Rxd7 {[%clk 00:23:05]} {[%emt 00:01:05]} Qb8 {[%clk 00:28:51]} {[%emt
00:04:52]} 28. Qf7 {[%clk 00:23:16]} {[%emt 00:00:18]} Qe5 {[%clk 00:28:12]}
{[%emt 00:01:09]} 29. Re7 {[%clk 00:21:13]} {[%emt 00:02:33]} Rd8 {[%clk
00:24:46]} {[%emt 00:03:56]} 30. g3 {[%clk 00:20:01]} {[%emt 00:01:42]} Qxb2
{[%clk 00:16:57]} {[%emt 00:08:20]} 31. Rxe8+ {[%clk 00:17:29]} {[%emt
00:03:02]} Rxe8 {[%clk 00:17:17]} {[%emt 00:00:10]} 32. Qxe8+ {[%clk 00:17:53]}
{[%emt 00:00:05]} Kh7 {[%clk 00:17:40]} {[%emt 00:00:07]} 33. Qe6 {[%clk
00:17:35]} {[%emt 00:00:47]} a5 {[%clk 00:16:44]} {[%emt 00:01:28]} 34. Qb3
{[%clk 00:15:46]} {[%emt 00:02:18]} Qc1+ {[%clk 00:15:09]} {[%emt 00:02:05]} 35.
Kg2 {[%clk 00:16:02]} {[%emt 00:00:15]} Qc6 {[%clk 00:15:22]} {[%emt 00:00:16]}
36. Qd3 {[%clk 00:15:38]} {[%emt 00:00:53]} b4 {[%clk 00:15:01]} {[%emt
00:00:52]} 37. f3 {[%clk 00:15:22]} {[%emt 00:00:46]} Kg8 {[%clk 00:10:56]}
{[%emt 00:04:35]} 38. Qd8+ {[%clk 00:14:53]} {[%emt 00:00:59]} Kh7 {[%clk
00:09:50]} {[%emt 00:01:36]} 39. Qxa5 {[%clk 00:14:39]} {[%emt 00:00:44]} Qc2+
{[%clk 00:09:30]} {[%emt 00:00:49]} 40. Kh3 {[%clk 00:12:44]} {[%emt 00:02:26]}
Qc8+ {[%clk 00:08:08]} {[%emt 00:01:52]} 41. g4 {[%clk 00:12:32]} {[%emt
00:00:43]} Qc4 {[%clk 00:07:17]} {[%emt 00:01:21]} 42. Qf5+ {[%clk 00:07:56]}
{[%emt 00:05:06]} Kg8 {[%clk 00:05:49]} {[%emt 00:01:58]} 43. Qg6 {[%clk
00:03:51]} {[%emt 00:04:35]} Qf1+ {[%clk 00:02:04]} {[%emt 00:04:15]} 44. Kg3
{[%clk 00:03:39]} {[%emt 00:00:43]} Qg1+ {[%clk 00:01:32]} {[%emt 00:01:01]} 45.
Kf4 {[%clk 00:03:56]} {[%emt 00:00:13]} Qxh2+ {[%clk 00:00:32]} {[%emt
00:01:30]} 46. Kf5 {[%clk 00:04:07]} {[%emt 00:00:20]} Qb2 {[%clk 00:15:01]}
{[%emt 00:01:31]} 47. Nf6+ {[%clk 00:19:57]} {[%emt 00:00:41]} Qxf6+ {[%clk
00:15:20]} {[%emt 00:00:11]} 48. Qxf6 {[%clk 00:20:20]} {[%emt 00:00:05]} gxf6
{[%clk 00:15:45]} {[%emt 00:00:05]} 49. Kxf6 {[%clk 00:20:43]} {[%emt
00:00:07]} Kf8 {[%emt 00:00:21]} 1-0

[Event "Polofinale MCR juniorek 2023"]
[Site "Czech Republic"]
[Date "2023.11.11"]
[Round "1.8"]
[White "Stavova, Helena"]
[Black "Jakubse, Tamae Severina"]
[Result "1-0"]
[TimeControl "90 min per 40 moves + 15 min + 30 sec / move from move 1"]
[WhiteFideId "23714751"]
[BlackFideId "23745975"]
[WhiteElo "1425"]
[BlackElo "1679"]

1. e4 {[%clk 01:30:54]} {[%emt 00:00:05]} e5 {[%clk 01:30:52]} {[%emt
00:00:08]} 2. Nf3 {[%clk 01:31:16]} {[%emt 00:00:07]} Nc6 {[%clk 01:31:18]}
{[%emt 00:00:05]} 3. d4 {[%clk 01:31:29]} {[%emt 00:00:17]} exd4 {[%clk
01:31:40]} {[%emt 00:00:08]} 4. Nxd4 {[%clk 01:31:48]} {[%emt 00:00:11]} Nf6
{[%clk 01:31:56]} {[%emt 00:00:14]} 5. Nc3 {[%clk 01:32:07]} {[%emt 00:00:11]}
Bb4 {[%clk 01:32:17]} {[%emt 00:00:10]} 6. Nxc6 {[%clk 01:32:01]} {[%emt
00:00:37]} bxc6 {[%clk 01:32:28]} {[%emt 00:00:19]} 7. Bd3 {[%clk 01:31:57]}
{[%emt 00:00:34]} O-O {[%clk 01:31:53]} {[%emt 00:01:04]} 8. O-O {[%clk
01:31:38]} {[%emt 00:00:48]} d5 {[%clk 01:31:44]} {[%emt 00:00:40]} 9. exd5
{[%clk 01:28:18]} {[%emt 00:03:50]} cxd5 {[%clk 01:32:05]} {[%emt 00:00:09]} 10.
Bg5 {[%clk 01:27:36]} {[%emt 00:01:11]} c6 {[%clk 01:32:20]} {[%emt 00:00:16]}
11. Qf3 {[%clk 01:22:56]} {[%emt 00:05:09]} Bd6 {[%clk 01:31:19]} {[%emt
00:01:31]} 12. h3 {[%clk 01:20:08]} {[%emt 00:03:17]} Be5 {[%clk 01:27:32]}
{[%emt 00:04:17]} 13. Rfe1 {[%clk 01:18:08]} {[%emt 00:02:30]} Qd6 {[%clk
01:26:09]} {[%emt 00:01:54]} 14. Rab1 {[%clk 01:12:07]} {[%emt 00:06:31]} Be6
{[%clk 01:19:03]} {[%emt 00:07:36]} 15. Ne2 {[%clk 01:07:30]} {[%emt 00:05:07]}
h6 {[%clk 01:07:37]} {[%emt 00:11:56]} 16. Bf4 {[%clk 01:04:01]} {[%emt
00:03:59]} Nd7 {[%clk 01:04:56]} {[%emt 00:03:11]} 17. c3 {[%clk 00:50:15]}
{[%emt 00:14:15]} c5 {[%clk 00:43:17]} {[%emt 00:22:09]} 18. Bc2 {[%clk
00:49:05]} {[%emt 00:01:40]} d4 {[%clk 00:40:46]} {[%emt 00:03:00]} 19. b3
{[%clk 00:36:26]} {[%emt 00:13:09]} a5 {[%clk 00:28:42]} {[%emt 00:12:34]} 20.
Qd3 {[%clk 00:30:43]} {[%emt 00:06:12]} f5 {[%clk 00:26:15]} {[%emt 00:02:57]}
21. Bg3 {[%clk 00:27:49]} {[%emt 00:03:25]} Bxg3 {[%clk 00:23:51]} {[%emt
00:02:54]} 22. Nxg3 {[%clk 00:27:38]} {[%emt 00:00:40]} Rad8 {[%clk 00:13:15]}
{[%emt 00:11:05]} 23. Rbd1 {[%clk 00:26:36]} {[%emt 00:01:32]} Nb6 {[%clk
00:09:20]} {[%emt 00:04:26]} 24. Ne2 {[%clk 00:22:48]} {[%emt 00:04:18]} Nd5
{[%clk 00:07:54]} {[%emt 00:01:57]} 25. a3 {[%clk 00:19:53]} {[%emt 00:03:25]}
dxc3 {[%clk 00:05:09]} {[%emt 00:03:14]} 26. Nxc3 {[%clk 00:19:42]} {[%emt
00:00:41]} Qc6 {[%clk 00:05:12]} {[%emt 00:00:27]} 27. Qf3 {[%clk 00:15:16]}
{[%emt 00:04:57]} c4 {[%clk 00:04:09]} {[%emt 00:01:33]} 28. Rxe6 {[%clk
00:10:20]} {[%emt 00:05:26]} Qxe6 {[%clk 00:04:28]} {[%emt 00:00:11]} 29. Nxd5
{[%clk 00:10:41]} {[%emt 00:00:08]} Qe5 {[%clk 00:03:37]} {[%emt 00:01:21]} 30.
bxc4 {[%clk 00:10:02]} {[%emt 00:01:09]} Rb8 {[%clk 00:03:33]} {[%emt
00:00:34]} 31. Nf4 {[%clk 00:06:19]} {[%emt 00:04:13]} Qb2 {[%clk 00:02:55]}
{[%emt 00:01:08]} 32. Qd5+ {[%clk 00:05:38]} {[%emt 00:01:12]} Rf7 {[%clk
00:02:29]} {[%emt 00:00:55]} 33. Rb1 {[%clk 00:05:23]} {[%emt 00:00:46]} Qxb1+
{[%clk 00:02:15]} {[%emt 00:00:44]} 34. Bxb1 {[%clk 00:05:44]} {[%emt
00:00:08]} Rxb1+ {[%clk 00:02:42]} {[%emt 00:00:04]} 35. Kh2 {[%clk 00:06:04]}
{[%emt 00:00:10]} Rbb7 {[%clk 00:02:42]} {[%emt 00:00:31]} 36. Qxa5 {[%clk
00:05:20]} {[%emt 00:01:14]} 1-0

[Event "Polofinale MCR juniorek 2023"]
[Site "Czech Republic"]
[Date "2023.11.11"]
[Round "1.9"]
[White "Sulcova, Tereza Radmila"]
[Black "Macova, Marketa"]
[Result "1-0"]
[TimeControl "90 min per 40 moves + 15 min + 30 sec / move from move 1"]
[WhiteFideId "395196"]
[BlackFideId "23715588"]
[WhiteElo "1671"]
[BlackElo "1416"]

1. e4 {[%clk 01:30:57]} {[%emt 00:00:02]} e5 {[%clk 01:30:54]} {[%emt
00:00:06]} 2. Nf3 {[%clk 01:31:14]} {[%emt 00:00:13]} Nc6 {[%clk 01:31:16]}
{[%emt 00:00:09]} 3. g3 {[%clk 01:31:29]} {[%emt 00:00:14]} Nf6 {[%clk
01:31:33]} {[%emt 00:00:13]} 4. d3 {[%clk 01:31:07]} {[%emt 00:00:52]} Bc5
{[%clk 01:31:35]} {[%emt 00:00:28]} 5. h3 {[%clk 01:27:11]} {[%emt 00:04:25]}
d6 {[%clk 01:30:12]} {[%emt 00:01:54]} 6. Bg2 {[%clk 01:25:06]} {[%emt
00:02:34]} Bd7 {[%clk 01:27:13]} {[%emt 00:03:30]} 7. Qe2 {[%clk 01:21:23]}
{[%emt 00:04:12]} Qe7 {[%clk 01:24:03]} {[%emt 00:03:40]} 8. c3 {[%clk
01:20:37]} {[%emt 00:01:16]} h6 {[%clk 01:23:18]} {[%emt 00:01:15]} 9. Be3
{[%clk 01:02:30]} {[%emt 00:18:37]} Bxe3 {[%clk 01:19:06]} {[%emt 00:04:41]} 10.
Qxe3 {[%clk 01:02:02]} {[%emt 00:00:58]} O-O-O {[%clk 01:16:24]} {[%emt
00:03:12]} 11. c4 {[%clk 00:42:09]} {[%emt 00:20:24]} g5 {[%clk 00:59:52]}
{[%emt 00:17:01]} 12. Nc3 {[%clk 00:33:39]} {[%emt 00:09:01]} Be6 {[%clk
00:50:25]} {[%emt 00:09:57]} 13. Nd5 {[%clk 00:30:59]} {[%emt 00:03:10]} Bxd5
{[%clk 00:49:50]} {[%emt 00:01:05]} 14. cxd5 {[%clk 00:31:01]} {[%emt
00:00:28]} Nb4 {[%clk 00:48:50]} {[%emt 00:01:30]} 15. Qd2 {[%clk 00:28:08]}
{[%emt 00:03:22]} Na6 {[%clk 00:48:21]} {[%emt 00:01:00]} 16. O-O {[%clk
00:25:27]} {[%emt 00:03:10]} Nh7 {[%clk 00:35:06]} {[%emt 00:13:45]} 17. Qa5
{[%clk 00:19:27]} {[%emt 00:06:31]} h5 {[%clk 00:33:22]} {[%emt 00:02:14]} 18.
b4 {[%clk 00:18:51]} {[%emt 00:01:06]} g4 {[%clk 00:29:46]} {[%emt 00:04:05]}
19. Nh4 {[%clk 00:18:48]} {[%emt 00:00:33]} Kb8 {[%clk 00:23:07]} {[%emt
00:07:10]} 20. Nf5 {[%clk 00:17:32]} {[%emt 00:01:45]} Qf6 {[%clk 00:19:39]}
{[%emt 00:03:58]} 21. h4 {[%clk 00:17:02]} {[%emt 00:01:00]} Nf8 {[%clk
00:17:19]} {[%emt 00:02:50]} 22. Rfc1 {[%clk 00:15:47]} {[%emt 00:01:45]} Rc8
{[%clk 00:16:56]} {[%emt 00:00:53]} 23. Rc3 {[%clk 00:14:44]} {[%emt 00:01:32]}
Qd8 {[%clk 00:15:27]} {[%emt 00:02:00]} 24. b5 {[%clk 00:13:41]} {[%emt
00:01:34]} Nc5 {[%clk 00:15:40]} {[%emt 00:00:17]} 25. Ra3 {[%clk 00:14:02]}
{[%emt 00:00:08]} a6 {[%clk 00:14:11]} {[%emt 00:01:59]} 26. bxa6 {[%clk
00:14:00]} {[%emt 00:00:32]} b6 {[%clk 00:11:40]} {[%emt 00:03:02]} 27. Qb4
{[%clk 00:09:26]} {[%emt 00:05:04]} Ka7 {[%clk 00:10:34]} {[%emt 00:01:36]} 28.
Rb1 {[%clk 00:07:53]} {[%emt 00:02:03]} Rb8 {[%clk 00:09:45]} {[%emt 00:01:20]}
29. d4 {[%clk 00:07:16]} {[%emt 00:01:07]} Ncd7 {[%clk 00:09:07]} {[%emt
00:01:07]} 30. Rc1 {[%clk 00:06:46]} {[%emt 00:01:00]} Ng6 {[%clk 00:07:16]}
{[%emt 00:02:21]} 31. Qc3 {[%clk 00:06:37]} {[%emt 00:00:38]} Rc8 {[%clk
00:07:16]} {[%emt 00:00:30]} 32. Qc6 {[%clk 00:06:57]} {[%emt 00:00:11]} Rb8
{[%clk 00:07:00]} {[%emt 00:00:45]} 33. Qxc7+ {[%clk 00:07:09]} {[%emt
00:00:17]} Ka8 {[%clk 00:06:37]} {[%emt 00:00:53]} 34. Qc6+ {[%clk 00:07:21]}
{[%emt 00:00:18]} Ka7 {[%clk 00:06:48]} {[%emt 00:00:19]} 35. Nxd6 {[%clk
00:07:27]} {[%emt 00:00:24]} Ne7 {[%clk 00:03:30]} {[%emt 00:03:47]} 36. Nb5#
{[%clk 00:07:43]} {[%emt 00:00:14]} 1-0

[Event "Polofinale MCR juniorek 2023"]
[Site "Czech Republic"]
[Date "2023.11.11"]
[Round "1.10"]
[White "Bartova, Hana"]
[Black "Sikorova, Jana"]
[Result "0-1"]
[TimeControl "90 min per 40 moves + 15 min + 30 sec / move from move 1"]
[WhiteFideId "23732695"]
[BlackFideId "392472"]
[WhiteElo "1270"]
[BlackElo "1662"]

1. e4 {[%clk 01:30:54]} {[%emt 00:00:05]} c5 {[%clk 01:30:38]} {[%emt
00:00:22]} 2. Nf3 {[%clk 01:30:41]} {[%emt 00:00:43]} a6 {[%clk 01:30:50]}
{[%emt 00:00:19]} 3. c3 {[%clk 01:28:40]} {[%emt 00:02:31]} d5 {[%clk
01:30:45]} {[%emt 00:00:34]} 4. exd5 {[%clk 01:28:50]} {[%emt 00:00:20]} Qxd5
{[%clk 01:31:08]} {[%emt 00:00:07]} 5. d4 {[%clk 01:28:48]} {[%emt 00:00:32]}
e6 {[%clk 01:30:32]} {[%emt 00:01:06]} 6. Be2 {[%clk 01:27:44]} {[%emt
00:01:35]} Nf6 {[%clk 01:30:01]} {[%emt 00:01:01]} 7. O-O {[%clk 01:26:23]}
{[%emt 00:01:49]} Nc6 {[%clk 01:29:08]} {[%emt 00:01:24]} 8. Bf4 {[%clk
01:22:03]} {[%emt 00:04:48]} cxd4 {[%clk 01:27:07]} {[%emt 00:02:33]} 9. cxd4
{[%clk 01:18:41]} {[%emt 00:03:53]} Be7 {[%clk 01:26:24]} {[%emt 00:01:13]} 10.
Nc3 {[%clk 01:16:52]} {[%emt 00:02:20]} Qd8 {[%clk 01:24:44]} {[%emt 00:02:09]}
11. Rc1 {[%clk 01:04:11]} {[%emt 00:13:11]} O-O {[%clk 01:23:33]} {[%emt
00:01:42]} 12. a3 {[%clk 00:52:31]} {[%emt 00:12:11]} b6 {[%clk 01:14:52]}
{[%emt 00:09:10]} 13. Qd2 {[%clk 00:44:34]} {[%emt 00:08:27]} Bb7 {[%clk
01:13:06]} {[%emt 00:02:16]} 14. Rfd1 {[%clk 00:44:21]} {[%emt 00:00:42]} Na5
{[%clk 01:10:10]} {[%emt 00:03:27]} 15. Qc2 {[%clk 00:38:37]} {[%emt 00:06:11]}
Rc8 {[%clk 01:09:08]} {[%emt 00:01:35]} 16. b4 {[%clk 00:35:48]} {[%emt
00:03:20]} Nd5 {[%clk 01:00:24]} {[%emt 00:09:12]} 17. Bd2 {[%clk 00:33:06]}
{[%emt 00:03:11]} Nc4 {[%clk 00:56:37]} {[%emt 00:04:18]} 18. Qb3 {[%clk
00:30:39]} {[%emt 00:02:55]} b5 {[%clk 00:53:38]} {[%emt 00:03:33]} 19. Be1
{[%clk 00:25:58]} {[%emt 00:05:11]} Nf4 {[%clk 00:46:40]} {[%emt 00:07:27]} 20.
Rc2 {[%clk 00:17:45]} {[%emt 00:08:43]} Bd6 {[%clk 00:42:01]} {[%emt 00:05:08]}
21. Nb1 {[%clk 00:13:54]} {[%emt 00:04:22]} Bd5 {[%clk 00:38:57]} {[%emt
00:03:34]} 22. Bxc4 {[%clk 00:13:38]} {[%emt 00:00:46]} Bxc4 {[%clk 00:37:51]}
{[%emt 00:01:35]} 23. Qe3 {[%clk 00:13:53]} {[%emt 00:00:13]} Nd5 {[%clk
00:32:05]} {[%emt 00:06:19]} 24. Qc1 {[%clk 00:12:47]} {[%emt 00:01:36]} Be2
{[%clk 00:27:48]} {[%emt 00:04:46]} 25. Rxe2 {[%clk 00:09:18]} {[%emt
00:04:00]} Rxc1 {[%clk 00:27:06]} {[%emt 00:01:12]} 26. Rxc1 {[%clk 00:09:46]}
Qd7 {[%clk 00:22:22]} {[%emt 00:05:13]} 27. Rec2 {[%clk 00:09:55]} {[%emt
00:00:22]} Nb6 {[%clk 00:20:13]} {[%emt 00:02:39]} 28. Nbd2 {[%clk 00:08:53]}
{[%emt 00:01:30]} Bf4 {[%clk 00:19:19]} {[%emt 00:01:24]} 29. g3 {[%clk
00:06:44]} {[%emt 00:02:40]} Bxd2 {[%clk 00:17:15]} {[%emt 00:02:34]} 30. Bxd2
{[%clk 00:06:13]} {[%emt 00:01:01]} Nc4 {[%clk 00:16:25]} {[%emt 00:01:20]} 31.
Ne5 {[%clk 00:06:13]} {[%emt 00:00:29]} Nxe5 {[%clk 00:15:44]} {[%emt
00:01:12]} 32. dxe5 {[%clk 00:06:41]} {[%emt 00:00:03]} Qd3 {[%clk 00:15:15]}
{[%emt 00:00:58]} 33. Bc3 {[%clk 00:06:28]} {[%emt 00:00:43]} Rc8 {[%clk
00:13:43]} {[%emt 00:02:02]} 34. Rd2 {[%clk 00:04:01]} {[%emt 00:02:58]} Qe4
{[%clk 00:12:29]} {[%emt 00:01:43]} 35. Rd4 {[%clk 00:03:22]} {[%emt 00:01:08]}
Qxd4 {[%clk 00:11:48]} {[%emt 00:01:12]} 36. Bxd4 {[%clk 00:03:20]} {[%emt
00:00:33]} Rxc1+ {[%clk 00:12:10]} {[%emt 00:00:07]} 37. Kg2 {[%clk 00:03:47]}
{[%emt 00:00:03]} Rd1 {[%clk 00:11:27]} {[%emt 00:01:13]} 38. Bc3 {[%clk
00:03:22]} {[%emt 00:00:53]} Rb1 {[%clk 00:10:39]} {[%emt 00:01:20]} 39. Bd4
{[%clk 00:02:28]} {[%emt 00:01:24]} Rb3 {[%clk 00:07:35]} {[%emt 00:03:35]} 40.
Kf1 {[%clk 00:02:43]} {[%emt 00:00:14]} Kf8 {[%clk 00:07:43]} {[%emt 00:00:23]}
41. Ke2 {[%clk 00:03:00]} {[%emt 00:00:10]} Rxa3 {[%clk 00:07:59]} {[%emt
00:00:16]} 42. Kd2 {[%clk 00:02:49]} {[%emt 00:00:37]} Ke8 {[%clk 00:07:07]}
{[%emt 00:01:27]} 43. Kc2 {[%clk 00:02:59]} {[%emt 00:00:18]} Kd7 {[%clk
00:07:03]} {[%emt 00:00:36]} 44. Bc3 {[%clk 00:01:09]} {[%emt 00:02:20]} Ra2+
{[%clk 00:05:48]} {[%emt 00:01:45]} 45. Bb2 {[%clk 00:01:28]} {[%emt 00:00:12]}
Kc6 {[%clk 00:05:54]} {[%emt 00:00:23]} 46. Kb3 {[%clk 00:01:40]} {[%emt
00:00:18]} Rxb2+ {[%clk 00:06:10]} {[%emt 00:00:14]} 47. Kxb2 {[%clk 00:01:52]}
{[%emt 00:00:18]} Kd5 {[%clk 00:06:34]} {[%emt 00:00:05]} 48. f4 {[%clk
00:01:39]} {[%emt 00:00:42]} Kc4 {[%clk 00:06:55]} {[%emt 00:00:09]} 49. Ka3
{[%clk 00:02:05]} {[%emt 00:00:05]} h5 {[%clk 00:06:40]} {[%emt 00:00:45]} 50.
h3 {[%clk 00:02:15]} {[%emt 00:00:21]} Kc3 {[%clk 00:06:54]} {[%emt 00:00:15]}
51. g4 {[%clk 00:02:20]} {[%emt 00:00:26]} hxg4 {[%clk 00:06:43]} {[%emt
00:00:41]} 52. hxg4 {[%clk 00:02:44]} {[%emt 00:00:06]} g6 {[%clk 00:07:04]}
{[%emt 00:00:08]} 0-1